[Event "Titled Tuesday Blitz March 15 Late 2022"]
[White "Magallanes, Rey Jomar"]
[Black "Vargas Pereda, Jesus Manue"]
[WhiteFideId "5205948"]
[BlackFideId "5115710"]
[WhiteElo "2222"]
[BlackElo "1863"]
[Result "1-0"]
[Round "07"]
[TimeControl "180+1"]
[Date "2022.03.16"]
[WhiteClock "0:00:47"]
[BlackClock "0:00:06"]

1. e4 {[%clk 0:02:58]}  c5 {[%clk 0:02:59]} 2. Nf3 {[%clk 0:02:54]}  a6 {[%clk 0:02:58]} 3. d4 {[%clk 0:02:54]}  cxd4 {[%clk 0:02:58]} 4. Nxd4 {[%clk 0:02:55]}  Nf6 {[%clk 0:02:59]} 5. Nc3 {[%clk 0:02:55]}  e5 {[%clk 0:02:58]} 6. Nb3 {[%clk 0:02:54]}  Bb4 {[%clk 0:02:58]} 7. Bd3 {[%clk 0:02:52]}  d5 {[%clk 0:02:55]} 8. exd5 {[%clk 0:02:51]}  Nxd5 {[%clk 0:02:54]} 9. Bd2 {[%clk 0:02:51]}  Nxc3 {[%clk 0:02:54]} 10. Bxc3 {[%clk 0:02:50]}  Bxc3+ {[%clk 0:02:54]} 11. bxc3 {[%clk 0:02:51]}  O-O {[%clk 0:02:54]} 12. O-O {[%clk 0:02:49]}  Nc6 {[%clk 0:02:54]} 13. Qe2 {[%clk 0:02:46]}  Qe7 {[%clk 0:02:50]} 14. Rad1 {[%clk 0:02:40]}  Be6 {[%clk 0:02:49]} 15. Bc4 {[%clk 0:02:20]}  Rac8 {[%clk 0:02:33]} 16. Bxe6 {[%clk 0:02:18]}  Qxe6 {[%clk 0:02:31]} 17. Nc5 {[%clk 0:02:15]}  Qe7 {[%clk 0:02:19]} 18. Ne4 {[%clk 0:02:13]}  Rfd8 {[%clk 0:02:09]} 19. g3 {[%clk 0:01:59]}  f6 {[%clk 0:01:51]} 20. h3 {[%clk 0:01:44]}  Qe6 {[%clk 0:01:43]} 21. Kh2 {[%clk 0:01:40]}  Qxa2 {[%clk 0:01:41]} 22. f4 {[%clk 0:01:34]}  Qe6 {[%clk 0:01:29]} 23. f5 {[%clk 0:01:26]}  Qe7 {[%clk 0:01:25]} 24. g4 {[%clk 0:01:22]}  h6 {[%clk 0:01:20]} 25. h4 {[%clk 0:01:21]}  b5 {[%clk 0:00:53]} 26. g5 {[%clk 0:01:15]}  Na5 {[%clk 0:00:37]} 27. gxh6 {[%clk 0:01:00]}  gxh6 {[%clk 0:00:08]} 28. Qg4+ {[%clk 0:00:57]}  Kf7 {[%clk 0:00:08]} 29. Qg6+ {[%clk 0:00:55]}  Kf8 {[%clk 0:00:08]} 30. Nxf6 {[%clk 0:00:50]}  Rxd1 {[%clk 0:00:06]} 31. Qg8# {[%clk 0:00:47]} 1-0


[Site "https://www.chess.com"]

[Event "Titled Tuesday Blitz March 15 Late 2022"]
[White "Manukyan, Sargis A."]
[Black "Demchenko, Anton"]
[WhiteFideId "13303970"]
[BlackFideId "4160258"]
[WhiteElo "2187"]
[BlackElo "2539"]
[Result "0-1"]
[Round "07"]
[TimeControl "180+1"]
[Date "2022.03.16"]
[WhiteClock "0:00:01"]
[BlackClock "0:00:02"]

1. d4 {[%clk 0:02:58]}  Nf6 {[%clk 0:02:59]} 2. c4 {[%clk 0:02:58]}  c5 {[%clk 0:02:59]} 3. d5 {[%clk 0:02:58]}  e6 {[%clk 0:02:59]} 4. Nc3 {[%clk 0:02:58]}  exd5 {[%clk 0:03:00]} 5. cxd5 {[%clk 0:02:59]}  d6 {[%clk 0:03:01]} 6. Nf3 {[%clk 0:03:00]}  g6 {[%clk 0:03:01]} 7. g3 {[%clk 0:02:59]}  Bg7 {[%clk 0:03:01]} 8. Bg2 {[%clk 0:03:00]}  O-O {[%clk 0:03:02]} 9. O-O {[%clk 0:03:01]}  Re8 {[%clk 0:03:02]} 10. a4 {[%clk 0:03:02]}  Na6 {[%clk 0:03:02]} 11. Nd2 {[%clk 0:03:02]}  Nb4 {[%clk 0:02:51]} 12. Nc4 {[%clk 0:02:57]}  a6 {[%clk 0:02:45]} 13. a5 {[%clk 0:02:56]}  Bf5 {[%clk 0:02:37]} 14. Bg5 {[%clk 0:02:51]}  h6 {[%clk 0:02:36]} 15. Bxf6 {[%clk 0:02:45]}  Bxf6 {[%clk 0:02:34]} 16. e4 {[%clk 0:02:45]}  Bc8 {[%clk 0:02:29]} 17. Qd2 {[%clk 0:02:45]}  h5 {[%clk 0:02:23]} 18. f4 {[%clk 0:02:39]}  Bd4+ {[%clk 0:02:19]} 19. Kh1 {[%clk 0:02:39]}  h4 {[%clk 0:02:19]} 20. Rae1 {[%clk 0:02:08]}  hxg3 {[%clk 0:02:17]} 21. hxg3 {[%clk 0:02:08]}  Kg7 {[%clk 0:02:18]} 22. Ne3 {[%clk 0:01:51]}  Rh8+ {[%clk 0:02:14]} 23. Kg1 {[%clk 0:01:51]}  Bg4 {[%clk 0:02:08]} 24. e5 {[%clk 0:01:47]}  dxe5 {[%clk 0:01:59]} 25. fxe5 {[%clk 0:01:48]}  Qg5 {[%clk 0:01:57]} 26. Rf4 {[%clk 0:01:43]}  Bh3 {[%clk 0:01:38]} 27. Ref1 {[%clk 0:01:26]}  Qxg3 {[%clk 0:01:31]} 28. Rxf7+ {[%clk 0:01:25]}  Kg8 {[%clk 0:01:31]} 29. R7f3 {[%clk 0:00:55]}  Qg4 {[%clk 0:01:16]} 30. Ne4 {[%clk 0:00:50]}  Nxd5 {[%clk 0:00:15]} 31. Rg3 {[%clk 0:00:17]}  Qxg3 {[%clk 0:00:13]} 32. Nxg3 {[%clk 0:00:15]}  Bxe3+ {[%clk 0:00:13]} 33. Rf2 {[%clk 0:00:10]}  Bxd2 {[%clk 0:00:10]} 34. Bxd5+ {[%clk 0:00:11]}  Kg7 {[%clk 0:00:10]} 35. Rxd2 {[%clk 0:00:09]}  Rad8 {[%clk 0:00:10]} 36. Ne4 {[%clk 0:00:09]}  Rh5 {[%clk 0:00:08]} 37. Nd6 {[%clk 0:00:03]}  Rxe5 {[%clk 0:00:08]} 38. Bxb7 {[%clk 0:00:04]}  Re6 {[%clk 0:00:07]} 39. Nf5+ {[%clk 0:00:04]}  Bxf5 {[%clk 0:00:04]} 40. Rxd8 {[%clk 0:00:05]}  Kf6 {[%clk 0:00:03]} 41. Rc8 {[%clk 0:00:05]}  Bd3 {[%clk 0:00:02]} 42. Rxc5 {[%clk 0:00:05]}  g5 {[%clk 0:00:03]} 43. Rc6 {[%clk 0:00:05]}  Rxc6 {[%clk 0:00:02]} 44. Bxc6 {[%clk 0:00:06]}  Ke5 {[%clk 0:00:02]} 45. b4 {[%clk 0:00:06]}  Kd4 {[%clk 0:00:02]} 46. b5 {[%clk 0:00:04]}  Kc5 {[%clk 0:00:02]} 47. Bd7 {[%clk 0:00:02]}  Bxb5 {[%clk 0:00:02]} 48. Bc8 {[%clk 0:00:01]}  Kb4 {[%clk 0:00:02]} 0-1


[Site "https://www.chess.com"]

[Event "Titled Tuesday Blitz March 15 Late 2022"]
[White "Marson, Juan Miguel"]
[Black "Goryachkina, Aleksandra"]
[WhiteFideId "106585"]
[BlackFideId "4147103"]
[WhiteElo "2053"]
[BlackElo "2426"]
[Result "0-1"]
[Round "07"]
[TimeControl "180+1"]
[Date "2022.03.16"]
[WhiteClock "0:00:03"]
[BlackClock "0:00:03"]

1. e4 {[%clk 0:02:59]}  e6 {[%clk 0:02:59]} 2. d4 {[%clk 0:02:59]}  d5 {[%clk 0:03:00]} 3. Nd2 {[%clk 0:02:59]}  c5 {[%clk 0:02:59]} 4. exd5 {[%clk 0:02:55]}  Qxd5 {[%clk 0:03:00]} 5. Ngf3 {[%clk 0:02:55]}  cxd4 {[%clk 0:03:00]} 6. Bc4 {[%clk 0:02:50]}  Qd7 {[%clk 0:03:00]} 7. O-O {[%clk 0:02:49]}  Nc6 {[%clk 0:03:00]} 8. Nb3 {[%clk 0:02:50]}  a6 {[%clk 0:03:00]} 9. Nbxd4 {[%clk 0:02:49]}  Nxd4 {[%clk 0:03:01]} 10. Nxd4 {[%clk 0:02:49]}  Qc7 {[%clk 0:03:01]} 11. Qe2 {[%clk 0:02:31]}  Bd6 {[%clk 0:02:59]} 12. h3 {[%clk 0:02:05]}  Ne7 {[%clk 0:02:57]} 13. c3 {[%clk 0:02:04]}  O-O {[%clk 0:02:53]} 14. Rd1 {[%clk 0:02:05]}  Ng6 {[%clk 0:02:47]} 15. Bd3 {[%clk 0:01:51]}  Bd7 {[%clk 0:02:37]} 16. Nf3 {[%clk 0:01:26]}  Bc6 {[%clk 0:02:19]} 17. Be4 {[%clk 0:01:20]}  Rad8 {[%clk 0:02:13]} 18. Bxc6 {[%clk 0:01:15]}  Qxc6 {[%clk 0:02:10]} 19. Bg5 {[%clk 0:01:09]}  Rd7 {[%clk 0:02:08]} 20. Nd4 {[%clk 0:01:01]}  Qc7 {[%clk 0:02:03]} 21. h4 {[%clk 0:00:51]}  Bf4 {[%clk 0:01:54]} 22. h5 {[%clk 0:00:43]}  Bxg5 {[%clk 0:01:48]} 23. hxg6 {[%clk 0:00:44]}  hxg6 {[%clk 0:01:48]} 24. Rd3 {[%clk 0:00:43]}  e5 {[%clk 0:01:42]} 25. Nf3 {[%clk 0:00:40]}  Rxd3 {[%clk 0:01:37]} 26. Qxd3 {[%clk 0:00:41]}  Bf4 {[%clk 0:01:37]} 27. g3 {[%clk 0:00:39]}  Rd8 {[%clk 0:01:33]} 28. Qe4 {[%clk 0:00:34]}  Bh6 {[%clk 0:01:31]} 29. Nxe5 {[%clk 0:00:18]}  Re8 {[%clk 0:01:29]} 30. f4 {[%clk 0:00:17]}  Qb6+ {[%clk 0:01:22]} 31. Kh1 {[%clk 0:00:10]}  Qxb2 {[%clk 0:01:13]} 32. Rb1 {[%clk 0:00:10]}  Qxc3 {[%clk 0:01:13]} 33. Rxb7 {[%clk 0:00:10]}  Qxg3 {[%clk 0:01:02]} 34. Rxf7 {[%clk 0:00:03]}  Qh4+ {[%clk 0:00:50]} 35. Kg2 {[%clk 0:00:03]}  Rd8 {[%clk 0:00:22]} 36. Nf3 {[%clk 0:00:01]}  Qg4+ {[%clk 0:00:20]} 37. Kf2 {[%clk 0:00:02]}  Rd2+ {[%clk 0:00:06]} 38. Nxd2 {[%clk 0:00:02]}  Kxf7 {[%clk 0:00:07]} 39. Nf3 {[%clk 0:00:02]}  Qxf4 {[%clk 0:00:06]} 40. Qd5+ {[%clk 0:00:03]}  Ke7 {[%clk 0:00:06]} 41. Qc5+ {[%clk 0:00:02]}  Qd6 {[%clk 0:00:05]} 42. Qa7+ {[%clk 0:00:02]}  Kf6 {[%clk 0:00:04]} 43. Qa8 {[%clk 0:00:01]}  Bf4 {[%clk 0:00:03]} 44. Kg2 {[%clk 0:00:02]}  g5 {[%clk 0:00:04]} 45. Qh8 {[%clk 0:00:02]}  Kg6 {[%clk 0:00:04]} 46. Qe8+ {[%clk 0:00:02]}  Kf6 {[%clk 0:00:03]} 47. Qe4 {[%clk 0:00:02]}  Qe6 {[%clk 0:00:03]} 48. Qd4+ {[%clk 0:00:03]}  Kg6 {[%clk 0:00:03]} 49. Qd3+ {[%clk 0:00:02]}  Qf5 {[%clk 0:00:03]} 50. Qd8 {[%clk 0:00:02]}  Qf6 {[%clk 0:00:03]} 51. Kf2 {[%clk 0:00:03]}  Qxd8 {[%clk 0:00:03]} 0-1


[Site "https://www.chess.com"]

[Event "Titled Tuesday Blitz March 15 Late 2022"]
[White "Miszler, Levente"]
[Black "Curtis, John"]
[WhiteFideId "763276"]
[BlackFideId "3200256"]
[WhiteElo "1966"]
[BlackElo "2203"]
[Result "1/2-1/2"]
[Round "07"]
[TimeControl "180+1"]
[Date "2022.03.16"]
[WhiteClock "0:01:25"]
[BlackClock "0:00:43"]

1. d4 {[%clk 0:03:00]}  Nf6 {[%clk 0:02:59]} 2. c4 {[%clk 0:02:59]}  g6 {[%clk 0:02:58]} 3. Nc3 {[%clk 0:02:59]}  d5 {[%clk 0:02:58]} 4. Nf3 {[%clk 0:02:57]}  Bg7 {[%clk 0:02:59]} 5. g3 {[%clk 0:02:56]}  O-O {[%clk 0:02:58]} 6. Bg2 {[%clk 0:02:56]}  c5 {[%clk 0:02:56]} 7. cxd5 {[%clk 0:02:55]}  Nxd5 {[%clk 0:02:54]} 8. O-O {[%clk 0:02:54]}  cxd4 {[%clk 0:02:53]} 9. Nxd4 {[%clk 0:02:51]}  Nxc3 {[%clk 0:02:52]} 10. bxc3 {[%clk 0:02:52]}  Qa5 {[%clk 0:02:44]} 11. Bb2 {[%clk 0:02:51]}  Rd8 {[%clk 0:02:39]} 12. Qc2 {[%clk 0:02:49]}  a6 {[%clk 0:02:31]} 13. Rfd1 {[%clk 0:02:47]}  Qc7 {[%clk 0:02:17]} 14. Qb3 {[%clk 0:02:41]}  Nc6 {[%clk 0:01:46]} 15. Nxc6 {[%clk 0:02:20]}  Rxd1+ {[%clk 0:01:45]} 16. Rxd1 {[%clk 0:02:20]}  bxc6 {[%clk 0:01:45]} 17. Qc4 {[%clk 0:02:19]}  Be6 {[%clk 0:01:41]} 18. Qxc6 {[%clk 0:02:16]}  Qxc6 {[%clk 0:01:42]} 19. Bxc6 {[%clk 0:02:16]}  Rb8 {[%clk 0:01:42]} 20. Ba3 {[%clk 0:02:12]}  Bxc3 {[%clk 0:01:37]} 21. Bxe7 {[%clk 0:02:11]}  Bxa2 {[%clk 0:01:33]} 22. Rc1 {[%clk 0:02:10]}  Rb1 {[%clk 0:01:23]} 23. Rxb1 {[%clk 0:02:05]}  Bxb1 {[%clk 0:01:24]} 24. Ba4 {[%clk 0:02:00]}  Ba2 {[%clk 0:01:16]} 25. Kg2 {[%clk 0:01:56]}  Bd5+ {[%clk 0:01:13]} 26. f3 {[%clk 0:01:54]}  Bc4 {[%clk 0:01:10]} 27. Kf2 {[%clk 0:01:53]}  a5 {[%clk 0:01:08]} 28. Ke3 {[%clk 0:01:49]}  f5 {[%clk 0:01:02]} 29. Bc5 {[%clk 0:01:47]}  Kf7 {[%clk 0:01:00]} 30. Bd4 {[%clk 0:01:47]}  Bxd4+ {[%clk 0:00:59]} 31. Kxd4 {[%clk 0:01:47]}  Bxe2 {[%clk 0:01:00]} 32. f4 {[%clk 0:01:46]}  Kf6 {[%clk 0:00:56]} 33. Kc5 {[%clk 0:01:44]}  h6 {[%clk 0:00:56]} 34. Kb6 {[%clk 0:01:43]}  g5 {[%clk 0:00:55]} 35. Kxa5 {[%clk 0:01:43]}  gxf4 {[%clk 0:00:52]} 36. gxf4 {[%clk 0:01:44]}  Kg6 {[%clk 0:00:50]} 37. Bc2 {[%clk 0:01:35]}  Bg4 {[%clk 0:00:49]} 38. Kb4 {[%clk 0:01:33]}  Kh5 {[%clk 0:00:50]} 39. Kc5 {[%clk 0:01:30]}  Kh4 {[%clk 0:00:50]} 40. Kd4 {[%clk 0:01:30]}  Kh3 {[%clk 0:00:50]} 41. Ke5 {[%clk 0:01:31]}  Kxh2 {[%clk 0:00:45]} 42. Bxf5 {[%clk 0:01:31]}  h5 {[%clk 0:00:44]} 43. Be4 {[%clk 0:01:25]}  Kg3 {[%clk 0:00:42]} 44. f5 {[%clk 0:01:24]}  Bxf5 {[%clk 0:00:41]} 45. Bxf5 {[%clk 0:01:24]}  h4 {[%clk 0:00:42]} 46. Be6 {[%clk 0:01:25]}  h3 {[%clk 0:00:43]} 47. Bxh3 {[%clk 0:01:25]} 1/2-1/2


[Site "https://www.chess.com"]

[Event "Titled Tuesday Blitz March 15 Late 2022"]
[White "Mohammadian, Mohammad"]
[Black "Ardila, Oscar Humberto"]
[WhiteFideId "12566055"]
[BlackFideId "4404742"]
[WhiteElo "1544"]
[BlackElo "1966"]
[Result "1-0"]
[Round "07"]
[TimeControl "180+1"]
[Date "2022.03.16"]
[WhiteClock "0:00:06"]
[BlackClock "0:00:04"]

1. e4 {[%clk 0:03:00]}  e5 {[%clk 0:03:00]} 2. Nf3 {[%clk 0:03:00]}  Nf6 {[%clk 0:02:59]} 3. Nxe5 {[%clk 0:02:59]}  d6 {[%clk 0:03:00]} 4. Nf3 {[%clk 0:02:56]}  Nxe4 {[%clk 0:03:00]} 5. d4 {[%clk 0:02:55]}  Be7 {[%clk 0:02:59]} 6. Bd3 {[%clk 0:02:54]}  d5 {[%clk 0:03:00]} 7. O-O {[%clk 0:02:52]}  Nc6 {[%clk 0:02:59]} 8. Re1 {[%clk 0:02:52]}  Nf6 {[%clk 0:02:57]} 9. c3 {[%clk 0:02:50]}  O-O {[%clk 0:02:57]} 10. Bg5 {[%clk 0:02:49]}  Bg4 {[%clk 0:02:56]} 11. Bxf6 {[%clk 0:02:45]}  Bxf6 {[%clk 0:02:56]} 12. Be2 {[%clk 0:02:44]}  Re8 {[%clk 0:02:55]} 13. Nbd2 {[%clk 0:02:43]}  Qd7 {[%clk 0:02:48]} 14. Qb3 {[%clk 0:02:42]}  Rab8 {[%clk 0:02:22]} 15. Bd3 {[%clk 0:02:30]}  a6 {[%clk 0:02:18]} 16. a4 {[%clk 0:02:24]}  h6 {[%clk 0:02:14]} 17. h3 {[%clk 0:02:12]}  Bf5 {[%clk 0:02:13]} 18. Rxe8+ {[%clk 0:02:04]}  Rxe8 {[%clk 0:02:11]} 19. Bxf5 {[%clk 0:02:01]}  Qxf5 {[%clk 0:02:11]} 20. Qxb7 {[%clk 0:01:58]}  Qd7 {[%clk 0:01:51]} 21. Qxa6 {[%clk 0:01:52]}  Rb8 {[%clk 0:01:50]} 22. b4 {[%clk 0:01:48]}  Rb6 {[%clk 0:01:44]} 23. Qd3 {[%clk 0:01:47]}  Rb8 {[%clk 0:01:41]} 24. a5 {[%clk 0:01:47]}  Na7 {[%clk 0:01:40]} 25. Re1 {[%clk 0:01:42]}  Qa4 {[%clk 0:01:38]} 26. Ne5 {[%clk 0:01:36]}  Rd8 {[%clk 0:01:21]} 27. Qa6 {[%clk 0:01:23]}  Nb5 {[%clk 0:01:14]} 28. Qc6 {[%clk 0:01:11]}  Nxc3 {[%clk 0:01:13]} 29. Qxc3 {[%clk 0:01:08]}  g6 {[%clk 0:01:04]} 30. Nef3 {[%clk 0:01:04]}  c6 {[%clk 0:01:03]} 31. Rc1 {[%clk 0:00:58]}  Kg7 {[%clk 0:00:58]} 32. Nb3 {[%clk 0:00:51]}  Re8 {[%clk 0:00:56]} 33. Nc5 {[%clk 0:00:50]}  Qb5 {[%clk 0:00:54]} 34. Nd7 {[%clk 0:00:43]}  Be7 {[%clk 0:00:49]} 35. Nde5 {[%clk 0:00:41]}  Qe2 {[%clk 0:00:36]} 36. Qxc6 {[%clk 0:00:38]}  Rf8 {[%clk 0:00:36]} 37. Re1 {[%clk 0:00:33]}  Qa2 {[%clk 0:00:34]} 38. Nxg6 {[%clk 0:00:30]}  Bxb4 {[%clk 0:00:25]} 39. Rc1 {[%clk 0:00:21]}  Rb8 {[%clk 0:00:19]} 40. Nge5 {[%clk 0:00:16]}  Ba3 {[%clk 0:00:18]} 41. Rf1 {[%clk 0:00:14]}  Qb3 {[%clk 0:00:12]} 42. Nd7 {[%clk 0:00:11]}  Rd8 {[%clk 0:00:11]} 43. Nde5 {[%clk 0:00:10]}  Bb4 {[%clk 0:00:08]} 44. a6 {[%clk 0:00:09]}  Qa3 {[%clk 0:00:07]} 45. Qb7 {[%clk 0:00:08]}  Rf8 {[%clk 0:00:07]} 46. a7 {[%clk 0:00:08]}  Bd6 {[%clk 0:00:06]} 47. Nd7 {[%clk 0:00:07]}  Rd8 {[%clk 0:00:04]} 48. Nb8 {[%clk 0:00:06]} 1-0


[Site "https://www.chess.com"]

[Event "Titled Tuesday Blitz March 15 Late 2022"]
[White "Nakamura, Hikaru"]
[Black "Andreikin, Dmitry"]
[WhiteFideId "2016192"]
[BlackFideId "4158814"]
[WhiteElo "3162"]
[BlackElo "3041"]
[Result "1-0"]
[Round "07"]
[TimeControl "180+1"]
[Date "2022.03.15"]
[WhiteClock "0:00:59"]
[BlackClock "0:00:55"]

1. Nf3 {[%clk 0:03:00]}  d5 {[%clk 0:02:59]} 2. b3 {[%clk 0:03:00]}  Bf5 {[%clk 0:02:58]} 3. Bb2 {[%clk 0:03:00]}  e6 {[%clk 0:02:59]} 4. g3 {[%clk 0:03:01]}  Nf6 {[%clk 0:02:59]} 5. Bg2 {[%clk 0:03:01]}  c6 {[%clk 0:02:58]} 6. Nh4 {[%clk 0:03:01]}  Be4 {[%clk 0:02:57]} 7. f3 {[%clk 0:03:02]}  Bg6 {[%clk 0:02:57]} 8. Nxg6 {[%clk 0:03:03]}  hxg6 {[%clk 0:02:57]} 9. e3 {[%clk 0:03:03]}  g5 {[%clk 0:02:55]} 10. f4 {[%clk 0:03:02]}  gxf4 {[%clk 0:02:55]} 11. exf4 {[%clk 0:03:02]}  Bc5 {[%clk 0:02:51]} 12. d4 {[%clk 0:03:00]}  Bb6 {[%clk 0:02:50]} 13. Nd2 {[%clk 0:03:00]}  Nbd7 {[%clk 0:02:49]} 14. Qe2 {[%clk 0:03:00]}  a5 {[%clk 0:02:48]} 15. a3 {[%clk 0:03:00]}  Qe7 {[%clk 0:02:38]} 16. O-O-O {[%clk 0:03:00]}  Bc7 {[%clk 0:02:37]} 17. Kb1 {[%clk 0:02:59]}  Bd6 {[%clk 0:02:37]} 18. Ka2 {[%clk 0:02:59]}  g6 {[%clk 0:02:34]} 19. c4 {[%clk 0:02:51]}  b5 {[%clk 0:02:22]} 20. cxb5 {[%clk 0:02:38]}  cxb5 {[%clk 0:02:22]} 21. Qxb5 {[%clk 0:02:39]}  O-O {[%clk 0:02:22]} 22. Rc1 {[%clk 0:02:38]}  Rfb8 {[%clk 0:02:21]} 23. Qd3 {[%clk 0:02:38]}  Ng4 {[%clk 0:02:12]} 24. Qe2 {[%clk 0:02:36]}  Ndf6 {[%clk 0:02:09]} 25. Bh3 {[%clk 0:02:12]}  Nh6 {[%clk 0:02:02]} 26. Qd3 {[%clk 0:02:12]}  Qa7 {[%clk 0:01:54]} 27. Rc6 {[%clk 0:02:07]}  Bb4 {[%clk 0:01:53]} 28. Bxe6 {[%clk 0:01:41]}  Kg7 {[%clk 0:01:43]} 29. Bh3 {[%clk 0:01:36]}  Bxd2 {[%clk 0:01:25]} 30. Qxd2 {[%clk 0:01:35]}  Qb7 {[%clk 0:01:26]} 31. Qc2 {[%clk 0:01:32]}  Ne4 {[%clk 0:01:21]} 32. Rc1 {[%clk 0:01:30]}  Nf5 {[%clk 0:01:21]} 33. Bxf5 {[%clk 0:01:29]}  gxf5 {[%clk 0:01:20]} 34. h3 {[%clk 0:01:25]}  Rh8 {[%clk 0:01:10]} 35. Rc7 {[%clk 0:01:22]}  Qb6 {[%clk 0:01:06]} 36. g4 {[%clk 0:01:08]}  Rxh3 {[%clk 0:01:01]} 37. gxf5 {[%clk 0:01:05]}  Rb8 {[%clk 0:00:56]} 38. Rg1+ {[%clk 0:01:04]}  Kf8 {[%clk 0:00:54]} 39. Rc8+ {[%clk 0:00:59]}  Rxc8 {[%clk 0:00:55]} 40. Qxc8+ {[%clk 0:00:59]}  Ke7 {[%clk 0:00:55]} 41. f6+ {[%clk 0:00:59]} 1-0


[Site "https://www.chess.com"]

[Event "Titled Tuesday Blitz March 15 Late 2022"]
[White "Obolenskikh, Dmitry"]
[Black "Aldokhin, Ivan"]
[WhiteFideId "4156013"]
[BlackFideId "24115720"]
[WhiteElo "2791"]
[BlackElo "2599"]
[Result "0-1"]
[Round "07"]
[TimeControl "180+1"]
[Date "2022.03.15"]
[WhiteClock "0:02:03"]
[BlackClock "0:01:42"]

1. Nf3 {[%clk 0:03:00]}  e6 {[%clk 0:02:55]} 2. c4 {[%clk 0:02:59]}  d5 {[%clk 0:02:55]} 3. e3 {[%clk 0:02:59]}  a6 {[%clk 0:02:54]} 4. b3 {[%clk 0:02:57]}  Nf6 {[%clk 0:02:45]} 5. Bb2 {[%clk 0:02:57]}  Be7 {[%clk 0:02:45]} 6. Nc3 {[%clk 0:02:51]}  O-O {[%clk 0:02:45]} 7. d4 {[%clk 0:02:51]}  b6 {[%clk 0:02:36]} 8. Be2 {[%clk 0:02:47]}  Bb7 {[%clk 0:02:36]} 9. cxd5 {[%clk 0:02:47]}  Nxd5 {[%clk 0:02:31]} 10. O-O {[%clk 0:02:45]}  Nxc3 {[%clk 0:02:28]} 11. Bxc3 {[%clk 0:02:45]}  Nd7 {[%clk 0:02:28]} 12. Rc1 {[%clk 0:02:38]}  Nf6 {[%clk 0:02:27]} 13. Ne5 {[%clk 0:02:35]}  c5 {[%clk 0:02:17]} 14. Bf3 {[%clk 0:02:33]}  Nd5 {[%clk 0:02:08]} 15. Bb2 {[%clk 0:02:25]}  Rc8 {[%clk 0:02:06]} 16. Qd2 {[%clk 0:02:09]}  b5 {[%clk 0:01:57]} 17. dxc5 {[%clk 0:02:04]}  Bxc5 {[%clk 0:01:51]} 18. Rfd1 {[%clk 0:02:03]}  Qe7 {[%clk 0:01:42]} 0-1


[Site "https://www.chess.com"]

[Event "Titled Tuesday Blitz March 15 Late 2022"]
[White "Oro, Luis"]
[Black "Hartikainen, Jarmo"]
[WhiteFideId "104094"]
[BlackFideId "503134"]
[WhiteElo "2275"]
[BlackElo "2105"]
[Result "1/2-1/2"]
[Round "07"]
[TimeControl "180+1"]
[Date "2022.03.16"]
[WhiteClock "0:00:10"]
[BlackClock "0:00:04"]

1. e4 {[%clk 0:03:00]}  c5 {[%clk 0:02:58]} 2. Nf3 {[%clk 0:02:59]}  Nc6 {[%clk 0:02:58]} 3. d4 {[%clk 0:02:59]}  cxd4 {[%clk 0:02:58]} 4. Nxd4 {[%clk 0:03:00]}  Nf6 {[%clk 0:02:59]} 5. Nc3 {[%clk 0:02:59]}  d6 {[%clk 0:02:59]} 6. f3 {[%clk 0:02:56]}  e5 {[%clk 0:02:58]} 7. Nb3 {[%clk 0:02:55]}  Be6 {[%clk 0:02:57]} 8. Be3 {[%clk 0:02:54]}  Be7 {[%clk 0:02:55]} 9. Qd2 {[%clk 0:02:54]}  a6 {[%clk 0:02:51]} 10. O-O-O {[%clk 0:02:54]}  Qc7 {[%clk 0:02:51]} 11. g4 {[%clk 0:02:54]}  Rc8 {[%clk 0:02:49]} 12. h4 {[%clk 0:02:53]}  Nb4 {[%clk 0:02:41]} 13. Kb1 {[%clk 0:02:44]}  b5 {[%clk 0:02:35]} 14. h5 {[%clk 0:02:40]}  h6 {[%clk 0:02:16]} 15. Be2 {[%clk 0:02:28]}  d5 {[%clk 0:02:15]} 16. exd5 {[%clk 0:02:22]}  Nbxd5 {[%clk 0:02:13]} 17. Nxd5 {[%clk 0:02:21]}  Nxd5 {[%clk 0:02:12]} 18. Bf2 {[%clk 0:02:16]}  Bg5 {[%clk 0:02:01]} 19. Qd3 {[%clk 0:02:10]}  Nb4 {[%clk 0:01:58]} 20. Qe4 {[%clk 0:02:07]}  Qxc2+ {[%clk 0:01:34]} 21. Qxc2 {[%clk 0:02:06]}  Rxc2 {[%clk 0:01:33]} 22. Rhe1 {[%clk 0:02:03]}  O-O {[%clk 0:01:11]} 23. Bc5 {[%clk 0:01:50]}  Bxb3 {[%clk 0:00:54]} 24. Bxb4 {[%clk 0:01:28]}  Rxe2 {[%clk 0:00:26]} 25. axb3 {[%clk 0:01:26]}  Rxe1 {[%clk 0:00:25]} 26. Rxe1 {[%clk 0:01:27]}  Rd8 {[%clk 0:00:23]} 27. Rxe5 {[%clk 0:01:21]}  Rd1+ {[%clk 0:00:18]} 28. Ka2 {[%clk 0:01:21]}  Rf1 {[%clk 0:00:17]} 29. Rf5 {[%clk 0:01:12]}  Bf6 {[%clk 0:00:17]} 30. Bc3 {[%clk 0:01:05]}  Bxc3 {[%clk 0:00:15]} 31. bxc3 {[%clk 0:01:05]}  Kf8 {[%clk 0:00:14]} 32. Ka3 {[%clk 0:01:01]}  Ra1+ {[%clk 0:00:11]} 33. Kb4 {[%clk 0:01:01]}  Ke7 {[%clk 0:00:11]} 34. Kc5 {[%clk 0:01:00]}  g6 {[%clk 0:00:11]} 35. hxg6 {[%clk 0:00:59]}  fxg6 {[%clk 0:00:12]} 36. Re5+ {[%clk 0:00:56]}  Kf6 {[%clk 0:00:12]} 37. Re8 {[%clk 0:00:55]}  h5 {[%clk 0:00:12]} 38. gxh5 {[%clk 0:00:50]}  gxh5 {[%clk 0:00:13]} 39. Rh8 {[%clk 0:00:49]}  Kg5 {[%clk 0:00:13]} 40. f4+ {[%clk 0:00:48]}  Kxf4 {[%clk 0:00:12]} 41. Rxh5 {[%clk 0:00:48]}  Ke4 {[%clk 0:00:13]} 42. Rh6 {[%clk 0:00:43]}  Kd3 {[%clk 0:00:13]} 43. Rh3+ {[%clk 0:00:38]}  Kc2 {[%clk 0:00:13]} 44. Kb4 {[%clk 0:00:26]}  a5+ {[%clk 0:00:10]} 45. Kxb5 {[%clk 0:00:26]}  Kxb3 {[%clk 0:00:10]} 46. c4+ {[%clk 0:00:26]}  Kc2 {[%clk 0:00:08]} 47. c5 {[%clk 0:00:26]}  Rc1 {[%clk 0:00:06]} 48. c6 {[%clk 0:00:22]}  Kb2 {[%clk 0:00:05]} 49. Rh7 {[%clk 0:00:18]}  a4 {[%clk 0:00:04]} 50. Rh2+ {[%clk 0:00:14]}  Kb3 {[%clk 0:00:04]} 51. Rh3+ {[%clk 0:00:13]}  Kb2 {[%clk 0:00:04]} 52. Rh7 {[%clk 0:00:12]}  a3 {[%clk 0:00:04]} 53. c7 {[%clk 0:00:10]}  Rxc7 {[%clk 0:00:04]} 54. Rxc7 {[%clk 0:00:10]}  a2 {[%clk 0:00:04]} 55. Ra7 {[%clk 0:00:09]}  a1=Q {[%clk 0:00:04]} 56. Rxa1 {[%clk 0:00:10]}  Kxa1 {[%clk 0:00:04]} 1/2-1/2


[Site "https://www.chess.com"]